bitfinex/quotes_SOLUSD_20260217
["timestamp","ask_amount","ask_price","bid_price","bid_amount"]
[1771289957509,18.8,86.747,86.711,3.083448]
[1771289959018,2.97792713,86.744,86.713,3.083448]
[1771289961924,2.97792713,86.744,86.715,3.083448]
[1771289962511,2.97792713,86.742,86.715,3.083448]
[1771289965932,2.97792713,86.74,86.715,3.083448]
[1771289967030,2.97792713,86.74,86.708,11.53285429]
[1771289967031,2.97792713,86.739,86.708,11.53285429]
[1771289968419,2.97792713,86.737,86.703,3.083448]
[1771289972131,2.97792713,86.737,86.7,3.25558645]
[1771289972132,2.97792713,86.737,86.705,3.083448]
[1771289975020,2.97792713,86.737,86.707,3.083448]
[1771289975922,2.97792713,86.736,86.707,3.083448]
[1771289976940,2.97792713,86.735,86.707,3.083448]
[1771289977122,2.97792713,86.735,86.708,11.5329612]
[1771289978018,2.97792713,86.735,86.708,14.6164092]
[1771289978220,2.97792713,86.735,86.703,3.083448]
[1771289982145,2.97792713,86.735,86.7,3.25558645]
[1771289982146,2.97792713,86.735,86.705,3.083448]
[1771289985828,2.97792713,86.735,86.678,15.26]
[1771289985829,3.11261116,86.719,86.691,11.5352228]
[1771289986139,3.11261116,86.718,86.691,11.5352228]
[1771289986342,3.11261116,86.718,86.692,3.15721695]
[1771289988046,3.11261116,86.718,86.694,3.15721695]
[1771289989250,3.11261116,86.718,86.696,3.25693965]
[1771289991936,18.84,86.72,86.7,3.25558645]
[1771289991937,15.56860423,86.72,86.7,3.25558645]
[1771289992252,3.04926765,86.737,86.711,2.27620004]
[1771289998658,3.04926765,86.744,86.713,2.28533409]
[1771289998952,3.04926765,86.759,86.721,2.28533409]
[1771289999363,3.04926765,86.759,86.73,3.25558645]
[1771290000041,3.04926765,86.758,86.728,1.49242714]
[1771290000358,3.04926765,86.758,86.722,11.53106207]
[1771290000664,3.04926765,86.758,86.73,3.25243969]
[1771290000851,3.04926765,86.758,86.74,3.25243969]
[1771290001553,3.04926765,86.758,86.722,40.3588105]
[1771290001554,0.1,86.78,86.751,3.25693965]
[1771290001740,11.62352177,86.78,86.751,3.25693965]
[1771290001938,11.62352177,86.78,86.75,3.25243969]
[1771290002259,0.1,86.78,86.75,3.25243969]
[1771290002767,0.1,86.78,86.745,3.25693965]
[1771290003533,3.04926765,86.779,86.748,3.25693965]
[1771290005336,3.04926765,86.778,86.75,3.25693965]
[1771290006246,3.04926765,86.778,86.751,3.25693965]
[1771290006450,0.1,86.79,86.77,3.25243969]
[1771290006654,0.1,86.79,86.78,3.25243969]
[1771290007535,3.28309752,86.8,86.78,3.25243969]
[1771290007738,3.28309752,86.815,86.78,3.25243969]
[1771290008654,3.28309752,86.814,86.781,11.52325969]
[1771290009252,3.28309752,86.812,86.781,11.52325969]
[1771290009565,3.28309752,86.812,86.79,3.25243969]
[1771290010041,3.28309752,86.812,86.781,40.33140893]
[1771290010042,0.1,86.82,86.8,3.25243969]
[1771290011538,0.1,86.82,86.801,11.5206046]
[1771290011755,0.1,86.83,86.81,3.25243969]
[1771290011962,0.1,86.83,86.81,3.24677113]
[1771290012263,3.38309752,86.83,86.81,3.24677113]
[1771290012647,3.38309752,86.83,86.801,40.3221161]
[1771290012843,3.38309752,86.83,86.81,3.24677113]
[1771290013353,0.1,86.83,86.82,3.24677113]
[1771290013654,3.28309752,86.843,86.82,3.24677113]
[1771290014446,3.28309752,86.85,86.822,0.02346634]
[1771290014648,18.8,86.854,86.831,0.02346634]
[1771290014860,3.28309752,86.858,86.84,3.24677113]
[1771290015370,3.28309752,86.858,86.83,3.24677113]
[1771290016752,3.28309752,86.858,86.823,0.03352838]
[1771290016950,3.28309752,86.859,86.83,3.24677113]
[1771290017152,0.1,86.86,86.85,3.24677113]
[1771290017564,3.30483752,86.882,86.85,3.24677113]
[1771290017873,0.1,86.91,86.84,3.24677113]
[1771290017874,3.30483752,86.879,86.84,3.24677113]
[1771290018075,3.24677113,86.86,86.801,293.7754173]
[1771290018252,3.24677113,86.86,86.83,3.24677113]
[1771290018253,3.30483752,86.859,86.83,3.24677113]
[1771290018649,3.30483752,86.859,86.801,293.7754173]
[1771290018650,3.30483752,86.848,86.811,11.51927751]
[1771290019051,3.30483752,86.839,86.811,11.51927751]
[1771290019256,3.30483752,86.839,86.803,11.52026288]
[1771290019571,3.30483752,86.839,86.777,15.24]
[1771290019572,3.30483752,86.809,86.764,11.52541168]
[1771290019758,3.30483752,86.789,86.764,11.52541168]
[1771290020975,12.72,86.802,86.771,3.22881596]
[1771290021178,12.72,86.802,86.781,3.22881596]
[1771290021554,12.72,86.802,86.772,3.22881596]
[1771290021781,3.24677113,86.79,86.764,11.52541168]
[1771290022274,3.24677113,86.8,86.764,11.52541168]
[1771290022794,3.24677113,86.8,86.764,14.75422764]
[1771290022966,3.22550447,86.798,86.761,11.52591602]
[1771290023279,3.22550447,86.789,86.759,14.75499768]
[1771290023576,3.22550447,86.789,86.753,11.52690148]
[1771290024165,3.22550447,86.769,86.74,11.52870647]
[1771290024467,3.22550447,86.759,86.729,11.53003714]
[1771290024987,3.22550447,86.759,86.716,28.82967199]
[1771290024988,3.22550447,86.792,86.751,3.22881596]
[1771290025190,3.22550447,86.791,86.76,6.47558709]
[1771290025373,3.22550447,86.791,86.761,3.22881596]
[1771290026188,3.22550447,86.799,86.761,3.22881596]
[1771290026685,3.22550447,86.799,86.77,3.24677113]
[1771290026864,28.79445528,86.823,86.77,3.24677113]
[1771290026865,3.22550447,86.808,86.782,14.75194287]
[1771290027064,3.22550447,86.808,86.783,3.22881596]
[1771290027484,3.22550447,86.815,86.783,3.22881596]
[1771290027670,3.22550447,86.823,86.791,3.22881596]
[1771290028276,18.74,86.835,86.783,3.22881596]
[1771290028277,3.22550447,86.819,86.783,3.22881596]
[1771290028965,3.22550447,86.819,86.792,3.22881596]
[1771290029166,3.22550447,86.841,86.811,3.22881596]
[1771290029385,0.1,86.9,86.831,3.22881596]
[1771290029386,3.22550447,86.869,86.831,3.22881596]
[1771290029573,3.22550447,86.869,86.83,3.24677113]
[1771290029774,3.22550447,86.869,86.831,3.22881596]
[1771290030988,3.22550447,86.859,86.831,3.22881596]
[1771290031183,3.22550447,86.859,86.821,14.74676668]
[1771290031391,3.22550447,86.849,86.816,11.51854583]
[1771290032987,3.22550447,86.869,86.84,3.24677113]
[1771290033195,3.22550447,86.869,86.841,11.51529807]
[1771290034389,3.22550447,86.883,86.85,3.24677113]
[1771290034599,3.22550447,86.883,86.851,3.22881596]
[1771290034885,3.24677113,86.88,86.841,14.74411403]
[1771290035063,3.22550447,86.879,86.841,14.74411403]
[1771290035265,3.22550447,86.878,86.841,14.74411403]
[1771290035571,3.22550447,86.878,86.851,3.22881596]
[1771290035985,3.22550447,86.896,86.86,8.10917548]
[1771290036476,3.22550447,86.896,86.818,4.61729252]
[1771290036477,3.22550447,86.879,86.842,3.22881596]
[1771290037069,3.22550447,86.879,86.85,8.10917548]
[1771290037264,3.22550447,86.879,86.851,3.22881596]
[1771290037469,3.22550447,86.888,86.86,8.10917548]
[1771290037882,8.20917548,86.9,86.87,8.10917548]
[1771290037883,3.22550447,86.898,86.87,8.10917548]
[1771290038282,3.22550447,86.898,86.871,3.22881596]
[1771290038884,3.22550447,86.898,86.83,86.3756766]
[1771290038885,3.22550447,86.879,86.85,11.51410477]
[1771290039592,3.22550447,86.869,86.842,11.51504145]
[1771290040187,3.22550447,86.869,86.811,15.22]
[1771290040188,3.22550447,86.859,86.825,11.51742009]
[1771290040686,3.22550447,86.849,86.811,11.51927751]
[1771290040983,3.22550447,86.839,86.811,40.31747128]
[1771290041181,3.22550447,86.849,86.812,3.22881596]
[1771290041581,3.22550447,86.849,86.82,8.10917548]
[1771290041779,18.74,86.853,86.83,8.10917548]
[1771290041970,18.74,86.853,86.821,3.22881596]
[1771290042891,18.74,86.853,86.831,3.22881596]
[1771290043470,3.22550447,86.868,86.84,8.10917548]
[1771290043794,3.22550447,86.849,86.805,3.22881596]
[1771290043970,3.22550447,86.839,86.801,11.5206046]
[1771290044293,8.10917548,86.83,86.801,11.5206046]
[1771290044593,3.25906621,86.829,86.797,3.32109623]
[1771290044793,3.25906621,86.83,86.786,3.32109623]
[1771290044969,8.10917548,86.83,86.8,11.43027171]
[1771290045477,3.25906621,86.835,86.8,11.43027171]
[1771290046767,3.25906621,86.809,86.785,11.52261216]
[1771290046966,3.25906621,86.809,86.732,46.11900978]
[1771290046967,3.25906621,86.799,86.765,11.52536419]
[1771290047466,8.10917548,86.79,86.765,11.52536419]
[1771290047674,3.4573468,86.82,86.78,8.10917548]
[1771290047891,3.4573468,86.829,86.79,8.10917548]
[1771290048977,3.4573468,86.827,86.791,11.52193199]
[1771290049182,3.4573468,86.827,86.8,8.10917548]
[1771290049898,3.4573468,86.809,86.77,8.10917548]
[1771290050073,3.4573468,86.809,86.78,8.10917548]
[1771290050899,3.4573468,86.809,86.781,11.52325969]
[1771290051894,3.4573468,86.819,86.79,8.10917548]
[1771290052610,28.78897844,86.839,86.781,40.33140893]
[1771290052611,3.4573468,86.838,86.81,8.10917548]
[1771290052778,3.4573468,86.854,86.82,8.10917548]
[1771290052982,3.4573468,86.854,86.821,11.51795072]
[1771290053704,3.4573468,86.852,86.821,11.51795072]
[1771290056506,3.4573468,86.839,86.801,0.09693957]
[1771290056708,3.4573468,86.839,86.81,8.10917548]
[1771290057618,11.5139722,86.851,86.795,28.8035025]
[1771290057619,3.4573468,86.849,86.82,8.21779813]
[1771290058606,3.4573468,86.849,86.821,11.51795072]
[1771290060811,3.4573468,86.862,86.83,8.25203175]
[1771290061806,19.6207369,86.87,86.821,40.31282753]
[1771290061807,3.4573468,86.871,86.84,8.10917548]
[1771290062310,3.4573468,86.871,86.841,0.16505826]
[1771290062604,3.4573468,86.871,86.84,8.10917548]
[1771290063504,3.4573468,86.869,86.841,11.51529807]
[1771290067907,3.4573468,86.869,86.85,8.10917548]
[1771290068205,11.50972236,86.884,86.86,8.10917548]
[1771290068206,3.4573468,86.884,86.86,8.10917548]
[1771290068399,3.4573468,86.899,86.87,8.10917548]
[1771290068598,3.4573468,86.899,86.871,0.22866437]
[1771290068785,14.9638539,86.908,86.88,8.10917548]
[1771290069384,11.50694304,86.905,86.88,8.10917548]
[1771290070915,3.4573468,86.901,86.88,8.10917548]
[1771290071207,3.5573468,86.9,86.88,8.10917548]
[1771290072107,0.1,86.9,86.88,8.10523663]
[1771290072311,0.1,86.9,86.881,0.2685633]
[1771290073188,0.1,86.91,86.89,8.10523663]
[1771290073790,3.5073468,86.909,86.876,11.51059923]
[1771290073992,3.5073468,86.909,86.88,8.10523663]
[1771290074906,0.1,86.91,86.89,8.10523663]
[1771290075417,0.1,86.91,86.891,11.50867178]
[1771290077892,0.1,86.91,86.9,8.10523663]
[1771290078097,3.5073468,86.928,86.9,8.10523663]
[1771290078506,0.1,86.93,86.881,11.50999643]
[1771290078507,3.5073468,86.919,86.881,11.50999643]
[1771290081528,3.5073468,86.909,86.881,11.50999643]
[1771290083510,3.5073468,86.909,86.89,8.10523663]
[1771290083914,3.5073468,86.92,86.9,8.10523663]
[1771290084812,11.71258343,86.93,86.9,8.38073671]
[1771290085124,3.6073468,86.93,86.901,0.27550008]
[1771290085319,3.6073468,86.93,86.9,8.10523663]
[1771290085624,3.6073468,86.93,86.901,11.50734744]
[1771290086308,11.61258343,86.94,86.903,0.2903601]
[1771290086516,11.61258343,86.94,86.92,8.10523663]
[1771290086517,3.5073468,86.94,86.92,8.10523663]
[1771290087519,3.5073468,86.94,86.912,11.50589101]
[1771290087721,11.61258343,86.94,86.91,8.10523663]
[1771290087927,11.61258343,86.94,86.907,11.50653493]
[1771290087928,3.5073468,86.938,86.907,11.50653493]
[1771290088337,11.50231771,86.939,86.891,28.77167219]
[1771290088338,3.5073468,86.929,86.892,11.50853933]
[1771290088507,3.5073468,86.899,86.859,0.304902]
[1771290088711,3.5073468,86.899,86.86,8.10523663]
[1771290089525,3.5073468,86.877,86.84,8.10523663]
[1771290089727,3.5073468,86.877,86.841,11.51529807]
[1771290091232,3.5073468,86.877,86.834,0.31208953]
[1771290091233,3.5073468,86.859,86.817,0.31920924]
[1771290091425,18.64,86.872,86.84,8.10523663]
[1771290091626,3.5073468,86.869,86.841,11.51529807]
[1771290092014,3.5073468,86.877,86.85,8.10523663]
[1771290092407,3.5073468,86.875,86.841,11.51529807]
[1771290093109,3.5073468,86.869,86.83,8.10523663]
[1771290093315,3.5073468,86.859,86.82,8.10523663]
[1771290093523,3.5073468,86.859,86.821,11.51795072]
[1771290093710,3.5073468,86.849,86.821,11.51795072]
[1771290094225,3.5073468,86.861,86.84,8.10523663]
[1771290094427,2.01639744,86.861,86.84,8.10523663]
[1771290094724,2.01639744,86.861,86.85,8.10523663]
[1771290095228,2.01639744,86.861,86.84,8.10523663]
[1771290095627,2.01639744,86.861,86.838,11.51561336]
[1771290096014,2.01639744,86.861,86.84,8.10523663]
[1771290096214,28.77107581,86.893,86.838,11.51561336]
[1771290096215,11.50893668,86.889,86.85,8.10523663]
[1771290096538,3.26100777,86.888,86.86,8.10523663]
[1771290097241,11.49967225,86.959,86.881,3.58514058]
[1771290097428,8.10523663,86.95,86.91,8.10523663]
[1771290097737,11.50099483,86.949,86.91,19.61134683]
[1771290098043,11.50041119,86.954,86.92,8.10523663]
[1771290098710,8.10523663,86.95,86.912,3.58514058]
[1771290098909,8.10523663,86.95,86.913,11.50575863]
[1771290099431,3.26100777,86.949,86.913,11.50575863]
[1771290100724,28.74918064,86.959,86.913,11.50575863]
[1771290100725,3.26100777,86.959,86.94,8.10523663]
[1771290100915,0.1,86.96,86.94,11.69037721]
[1771290101111,0.1,86.96,86.95,8.10523663]
[1771290102634,18.7,86.985,86.951,3.58514058]
[1771290102843,18.7,86.985,86.941,40.2571859]
[1771290102844,21.96100777,86.999,86.97,8.10523663]
[1771290103038,3.26100777,86.999,86.97,8.10523663]
[1771290103343,3.26100777,86.999,86.959,11.49960194]
[1771290103521,3.26100777,86.999,86.97,8.10523663]
[1771290103912,3.26100777,86.999,86.961,3.58514058]
[1771290104320,3.33581016,86.998,86.96,8.10523663]
[1771290104915,3.33581016,86.996,86.96,8.10523663]
[1771290105231,3.33581016,86.989,86.96,8.10523663]
[1771290105439,3.33581016,86.989,86.951,11.50067449]
[1771290105922,3.33581016,86.989,86.96,8.10523663]
[1771290106236,3.33581016,86.999,86.961,3.39388701]
[1771290106423,18.7,86.996,86.97,8.10523663]
[1771290106626,3.33581016,86.999,86.98,8.10523663]
[1771290107026,8.10523663,86.99,86.951,11.50067449]
[1771290107219,0.1,87.0,86.944,11.50153638]
[1771290107220,8.10523663,86.98,86.944,11.50153638]
[1771290107415,1.60158257,86.979,86.944,11.50153638]
[1771290107615,1.60158257,86.978,86.944,11.50153638]
[1771290107816,1.60158257,86.978,86.944,14.89542339]
[1771290108017,1.60158257,86.978,86.95,8.10523663]
[1771290108217,1.60158257,86.978,86.945,3.39388701]
[1771290109244,1.60158257,86.978,86.918,4.61729252]
[1771290109245,8.10523663,86.97,86.932,3.38338775]
[1771290109743,1.5438135,86.959,86.921,3.38338775]
[1771290110940,8.10523663,86.95,86.921,3.38338775]
[1771290111325,8.10523663,86.95,86.899,15.28]
[1771290111326,1.50639821,86.949,86.899,3.38338775]
[1771290111537,8.10523663,86.95,86.81,6.64979529]
[1771290111538,8.10523663,86.91,86.872,3.38338775]
[1771290111737,8.10523663,86.91,86.871,11.51132138]
[1771290111738,8.10523663,86.92,86.881,3.38338775]
[1771290111929,8.10523663,86.92,86.891,3.38338775]
[1771290112126,8.10523663,86.91,86.872,3.38338775]
[1771290112441,8.10523663,86.92,86.881,3.38338775]
[1771290113223,8.10523663,86.91,86.881,3.38338775]
[1771290113440,11.50628818,86.909,86.881,3.38338775]
[1771290113637,8.10523663,86.9,86.881,3.38338775]
[1771290114148,11.50628818,86.909,86.869,3.38338775]
[1771290114149,8.10523663,86.89,86.869,3.38338775]
[1771290114647,8.10523663,86.9,86.869,3.38338775]
[1771290114822,18.7,86.903,86.87,8.10523663]
[1771290115021,8.10523663,86.92,86.881,3.38338775]
[1771290115228,11.50496439,86.919,86.881,3.38338775]
[1771290115634,11.50496439,86.919,86.882,11.50986395]
[1771290115818,11.50496439,86.919,86.883,3.38338775]
[1771290116438,8.10523663,86.91,86.883,3.38338775]
[1771290118347,103.50809526,86.95,86.883,3.38338775]
[1771290118348,13.11823745,86.937,86.901,3.38338775]
[1771290118549,8.10523663,86.93,86.901,3.38338775]
[1771290119762,8.10523663,86.94,86.911,3.38338775]
[1771290119926,8.10523663,86.93,86.89,8.10523663]
[1771290120127,8.10523663,86.93,86.899,3.38338775]
[1771290121345,1.6503322,86.937,86.899,3.38338775]
[1771290121549,8.10523663,86.93,86.899,3.38338775]
[1771290122328,11.50271464,86.936,86.901,3.38338775]
[1771290122634,11.50271464,86.936,86.9,19.61271649]
[1771290122635,8.10523663,86.98,86.936,3.38338775]
[1771290122826,1.70093952,86.989,86.95,8.10523663]
[1771290123027,18.76,86.998,86.961,3.38338775]
[1771290123261,8.10523663,86.99,86.961,3.38338775]
[1771290123748,8.10523663,86.98,86.941,3.38338775]
[1771290125250,11.49702801,86.979,86.943,3.38338775]
[1771290125451,8.10523663,86.97,86.933,3.38338775]
[1771290125654,8.10523663,86.96,86.933,3.38338775]
[1771290125871,1.74978057,86.969,86.933,3.38338775]
[1771290126030,8.10523663,86.97,86.933,3.38338775]
[1771290126543,1.76566266,86.969,86.933,3.38338775]
[1771290127473,11.4984822,86.968,86.933,3.38338775]
[1771290128038,1.78137333,86.949,86.911,11.5060234]
[1771290128246,1.78137333,86.949,86.912,3.38338775]
[1771290128765,8.10523663,86.94,86.905,11.50676277]
[1771290129071,8.10523663,86.94,86.905,14.89015052]
[1771290129405,18.74,86.946,86.911,3.38338775]
[1771290129568,18.74,86.946,86.913,3.38338775]
[1771290130345,8.10523663,86.95,86.913,3.38338775]
[1771290130546,11.50152395,86.945,86.913,3.38338775]
[1771290133446,11.50152395,86.945,86.915,3.38338775]
[1771290136251,11.50152395,86.945,86.917,3.42710464]
[1771290136854,1.84233352,86.951,86.917,3.42710464]
[1771290137359,1.84233352,86.951,86.916,11.50536149]
[1771290137360,11.50086256,86.95,86.919,3.42710464]
[1771290138545,11.50086256,86.95,86.91,8.09948539]
[1771290138546,11.50086256,86.95,86.921,3.42710464]
[1771290139249,1.94284725,86.949,86.913,3.42710464]
[1771290140744,13.46661492,86.948,86.915,3.42710464]
[1771290140965,1.96548781,86.947,86.915,3.42710464]
[1771290141967,1.97654168,86.929,86.895,3.42710464]
[1771290142772,1.97654168,86.929,86.887,28.77300254]
[1771290142773,11.50307549,86.934,86.901,3.42710464]
[1771290144471,8.09948539,86.94,86.901,3.42710464]
[1771290144847,8.09948539,86.94,86.903,3.42710464]
[1771290145172,2.00908779,86.949,86.911,3.42710464]
[1771290146465,13.53172411,86.946,86.912,3.42710464]
[1771290147251,2.04057262,86.945,86.912,3.42710464]
[1771290147669,11.50150326,86.946,86.912,3.42710464]
[1771290147893,8.09948539,86.95,86.911,11.50593078]
[1771290147894,11.50067979,86.952,86.921,3.42710464]
[1771290148063,18.68,86.951,86.921,3.42710464]
[1771290148264,11.50067979,86.952,86.921,3.42710464]
[1771290148474,20.72057262,86.955,86.923,3.42710464]
[1771290148682,18.68,86.955,86.923,3.42710464]
[1771290149055,11.5003335,86.954,86.923,3.42710464]
[1771290149367,18.68,86.955,86.923,3.42710464]
[1771290149573,30.18029119,86.955,86.923,3.42710464]
[1771290150156,8.09948539,86.95,86.923,3.42710464]
[1771290150461,2.07094547,86.949,86.915,3.42710464]
[1771290150776,8.09948539,86.94,86.915,3.42710464]
[1771290151361,8.09948539,86.94,86.889,15.3]
[1771290151362,2.07094547,86.947,86.917,3.42710464]
[1771290151560,18.68,86.948,86.921,3.42710464]
[1771290151760,11.50010591,86.956,86.921,3.42710464]
[1771290151761,8.09948539,86.96,86.921,3.42710464]
[1771290151968,18.68,86.957,86.921,3.42710464]
[1771290152677,18.68,86.957,86.931,3.42710464]
[1771290153072,11.500069,86.956,86.931,3.42710464]
[1771290153269,11.500069,86.956,86.898,4.61729252]
[1771290153270,2.09058098,86.949,86.912,3.42710464]
[1771290153573,2.09058098,86.949,86.876,46.0425519]
[1771290153574,2.10024316,86.939,86.904,3.42710464]
[1771290153979,8.09948539,86.93,86.904,3.42710464]
[1771290155265,19.60312623,86.93,86.904,3.42710464]
[1771290156280,21.72236237,86.93,86.904,3.42710464]
[1771290156580,19.60312623,86.93,86.904,3.42710464]
[1771290157157,8.09948539,86.93,86.904,3.42710464]
[1771290157782,8.09948539,86.93,86.906,3.42710464]
[1771290159366,11.5030235,86.934,86.906,3.42710464]
[1771290160275,2.15590748,86.929,86.898,3.42710464]
[1771290161476,11.50377323,86.928,86.898,3.42710464]
[1771290161668,11.50377323,86.928,86.899,3.42710464]
[1771290161874,30.18377323,86.928,86.899,3.42710464]
[1771290164391,8.09948539,86.92,86.899,3.42710464]
[1771290165992,2.2077971,86.927,86.899,3.42710464]
[1771290166573,2.22435979,86.919,86.892,3.60474242]
[1771290166770,3.24153102,86.91,86.882,3.60474242]
[1771290167083,5.46589081,86.91,86.882,3.60474242]
[1771290167273,2.22435979,86.91,86.882,3.60474242]
[1771290167688,18.68,86.909,86.882,3.60474242]
[1771290167969,20.91256169,86.909,86.882,3.60474242]
[1771290168185,18.68,86.908,86.882,3.60474242]
[1771290168383,17.02539491,86.908,86.891,3.60474242]
[1771290168588,17.02539491,86.908,86.89,3.24153102]
[1771290168589,6.34690227,86.908,86.903,3.60474242]
[1771290168791,3.66977823,86.926,86.896,1.74854889]
[1771290169200,3.66977823,86.926,86.889,1.76553092]
[1771290169377,40.2636695,86.927,86.875,11.51079136]
[1771290169378,3.6722546,86.919,86.875,11.51079136]
[1771290169576,3.6722546,86.909,86.876,1.78233658]
[1771290170194,3.6722546,86.899,86.871,11.51130486]
[1771290170398,3.6722546,86.899,86.871,13.31032949]
[1771290170592,3.6722546,86.899,86.872,1.79902463]
[1771290171796,3.6722546,86.897,86.872,1.79902463]
[1771290172094,3.6722546,86.897,86.865,1.81539381]
[1771290172800,3.6722546,86.901,86.871,1.83162744]
[1771290172983,3.6722546,86.901,86.87,3.24153102]
[1771290173584,3.6722546,86.899,86.865,11.5121165]
[1771290173896,3.6722546,86.899,86.866,1.84767366]
[1771290174592,15.17986688,86.899,86.866,1.84767366]
[1771290174795,3.6722546,86.898,86.866,1.84767366]
[1771290175903,3.6722546,86.898,86.867,11.51185145]
[1771290176480,3.6722546,86.889,86.863,11.51237739]
[1771290177097,3.6722546,86.889,86.842,15.28]
[1771290177098,3.6722546,86.869,86.84,11.51543067]
[1771290177295,3.6722546,86.877,86.841,1.8219273]
[1771290177681,3.6722546,86.877,86.843,1.8219273]
[1771290178407,3.6722546,86.876,86.843,1.8219273]
[1771290179681,3.6722546,86.869,86.843,1.8219273]
[1771290179900,3.6722546,86.869,86.732,19.16353583]
[1771290179901,3.6722546,86.859,86.819,1.80949346]
[1771290180090,3.6722546,86.859,86.811,11.51927751]
[1771290180091,3.6722546,86.859,86.821,1.80949346]
[1771290180984,3.6722546,86.869,86.831,1.80338344]
[1771290181187,3.6722546,86.869,86.841,1.80338344]
[1771290181683,3.6722546,86.868,86.841,1.80338344]
[1771290183296,3.6722546,86.868,86.842,11.51516547]
[1771290184006,3.6722546,86.859,86.838,11.51568914]
[1771290184199,3.6722546,86.859,86.829,11.51688951]
[1771290184894,3.6722546,86.859,86.829,13.29652667]
[1771290185099,3.6722546,86.859,86.829,11.51688951]
[1771290185305,3.6722546,86.859,86.83,1.77963716]
[1771290187290,3.6722546,86.859,86.822,1.76253386]
[1771290187494,3.6722546,86.849,86.822,1.76253386]
[1771290187700,3.6722546,86.849,86.813,1.76253386]
[1771290187965,11.51304427,86.858,86.81,0.2]
[1771290187966,3.6722546,86.839,86.81,0.2]
[1771290188214,3.6722546,86.839,86.811,13.28181137]
[1771290188382,3.6722546,86.839,86.811,11.51927751]
[1771290188587,3.6722546,86.839,86.812,1.75696322]
[1771290190207,3.6722546,86.839,86.814,1.75145656]
[1771290190409,3.6722546,86.837,86.81,0.2]
[1771290190600,3.6722546,86.837,86.811,13.26529067]
[1771290191111,3.6722546,86.837,86.812,1.74601316]
[1771290193009,3.6722546,86.845,86.814,1.73531319]
[1771290193211,28.78252339,86.859,86.821,1.73531319]
[1771290193212,3.6722546,86.855,86.821,1.73531319]
[1771290193590,3.24729806,86.86,86.821,1.73531319]
[1771290193794,3.6722546,86.859,86.821,1.73531319]
[1771290194112,3.6097533,86.858,86.821,1.73531319]
[1771290194304,3.6097533,86.849,86.821,1.73531319]
[1771290195508,3.6097533,86.849,86.822,11.51781806]
[1771290195816,3.6097533,86.849,86.823,1.71464085]
[1771290197311,3.6097533,86.849,86.81,3.44729806]
[1771290197312,3.6097533,86.847,86.81,5.15195549]
[1771290197809,3.6097533,86.847,86.811,1.70465743]
[1771290198007,3.6097533,86.829,86.81,0.2]
[1771290198317,3.6097533,86.829,86.811,11.51927751]
[1771290198617,3.6097533,86.829,86.803,1.70465743]
[1771290198618,3.6097533,86.829,86.791,11.52193199]
[1771290198921,3.6097533,86.829,86.792,1.69975156]
[1771290199103,3.6097533,86.819,86.79,0.2]
[1771290199298,3.6097533,86.809,86.79,0.2]
[1771290200712,3.6097533,86.807,86.79,0.2]
[1771290200915,3.6097533,86.799,86.773,11.52424027]
[1771290201700,3.6097533,86.799,86.771,1.69010822]
[1771290201902,3.6097533,86.799,86.764,1.88536946]
[1771290202421,3.6097533,86.797,86.765,13.40606978]
[1771290203918,18.62,86.804,86.755,28.81668045]
[1771290203919,3.6097533,86.789,86.755,1.8760546]
[1771290204134,3.6097533,86.779,86.752,11.52711064]
[1771290204431,3.6097533,86.779,86.746,1.87147726]
[1771290204637,11.52233027,86.788,86.73,15.3]
[1771290204638,3.6097533,86.759,86.731,11.5299028]
[1771290205926,3.6097533,86.759,86.725,1.86695249]
[1771290207504,3.24729806,86.74,86.72,0.2]
[1771290207826,46.08509202,86.796,86.722,1.8596046]
[1771290207827,3.24729806,86.76,86.722,1.8596046]
[1771290208006,3.6097533,86.774,86.741,1.8596046]
[1771290208330,3.6097533,86.769,86.731,1.8596046]
[1771290209920,3.6097533,86.769,86.73,3.24729806]
[1771290209921,3.6097533,86.769,86.733,1.85242453]
[1771290211134,28.80376602,86.795,86.732,40.35419452]
[1771290211135,3.6097533,86.786,86.751,1.84889623]
[1771290211311,3.6097533,86.789,86.751,1.84540846]
[1771290212219,3.6097533,86.789,86.753,1.84540846]
[1771290213529,3.6097533,86.789,86.761,1.83855263]
[1771290214428,3.6097533,86.789,86.763,1.83518366]
[1771290214727,3.6097533,86.799,86.763,1.83518366]
[1771290215131,18.6,86.803,86.771,1.83518366]
[1771290215334,3.6097533,86.807,86.771,1.83518366]
[1771290216337,3.6097533,86.807,86.773,1.82856137]
[1771290218718,3.6097533,86.807,86.775,1.82209033]
[1771290219037,3.6097533,86.799,86.774,11.52418927]
[1771290219733,3.6097533,86.809,86.775,1.81891045]
[1771290220131,3.6097533,86.808,86.775,1.81891045]
[1771290220644,3.6097533,86.806,86.775,1.81891045]
[1771290220820,3.6097533,86.806,86.77,1.81576709]
[1771290221020,3.6097533,86.806,86.771,1.81576709]
[1771290222951,11.52007372,86.805,86.772,11.52445489]
[1771290223237,3.6097533,86.789,86.762,11.5256939]
[1771290224541,3.82068849,86.798,86.763,1.80058365]
[1771290224842,3.82068849,86.806,86.771,1.80058365]